[Event "Cerrado Blitz Quart 2018"]
[Site "Quart (Valencia), Spain"]
[Date "2018.08.30"]
[Round "3.3"]
[White "Diaz Velandia, J Manuel"]
[Black "Galvan Cipriani, Viviana"]
[Result "1-0"]
[TimeControl "7 minutos +3s por jugada"]
[WhiteTitle "FM"]
[BlackTitle "WFM"]
[WhiteFideId "3901939"]
[BlackFideId "32041144"]
[WhiteElo "2367"]
[BlackElo "1948"]

1. d4 {[%clk 00:07:03]} {[%emt 00:00:03]} c5 {[%clk 00:07:04]} {[%emt
00:00:02]} 2. e3 {[%clk 00:07:05]} {[%emt 00:00:01]} Nf6 {[%clk 00:07:05]}
{[%emt 00:00:02]} 3. Nf3 {[%clk 00:07:07]} b6 {[%clk 00:07:07]} {[%emt
00:00:02]} 4. Bd3 {[%clk 00:07:09]} g6 {[%clk 00:07:08]} {[%emt 00:00:02]} 5.
O-O {[%clk 00:07:10]} {[%emt 00:00:02]} Bb7 {[%clk 00:07:10]} {[%emt 00:00:01]}
6. c3 {[%clk 00:07:12]} d6 {[%clk 00:07:12]} {[%emt 00:00:01]} 7. Nbd2 {[%clk
00:07:14]} {[%emt 00:00:01]} Nbd7 {[%clk 00:07:13]} {[%emt 00:00:02]} 8. e4
{[%clk 00:07:16]} Bg7 {[%clk 00:07:14]} {[%emt 00:00:01]} 9. Re1 {[%clk
00:07:18]} {[%emt 00:00:02]} e5 {[%clk 00:07:09]} {[%emt 00:00:08]} 10. Nf1
{[%clk 00:07:20]} {[%emt 00:00:02]} O-O {[%clk 00:07:09]} {[%emt 00:00:02]} 11.
Ng3 {[%clk 00:07:21]} {[%emt 00:00:02]} Qc7 {[%clk 00:07:05]} {[%emt 00:00:07]}
12. Bd2 {[%clk 00:07:07]} {[%emt 00:00:18]} Rac8 {[%clk 00:06:37]} {[%emt
00:00:31]} 13. Rc1 {[%clk 00:07:08]} {[%emt 00:00:03]} Qb8 {[%clk 00:06:23]}
{[%emt 00:00:17]} 14. d5 {[%clk 00:07:08]} {[%emt 00:00:04]} a6 {[%clk
00:06:23]} {[%emt 00:00:02]} 15. c4 {[%clk 00:07:07]} {[%emt 00:00:04]} Ne8
{[%clk 00:06:04]} {[%emt 00:00:22]} 16. h4 {[%clk 00:07:08]} {[%emt 00:00:03]}
h5 {[%clk 00:05:56]} {[%emt 00:00:10]} 17. Ng5 {[%clk 00:07:05]} {[%emt
00:00:06]} Ndf6 {[%clk 00:05:55]} {[%emt 00:00:04]} 18. Rb1 {[%clk 00:06:34]}
{[%emt 00:00:34]} Qc7 {[%clk 00:05:53]} {[%emt 00:00:05]} 19. b4 {[%clk
00:06:30]} {[%emt 00:00:07]} Qe7 {[%clk 00:05:44]} {[%emt 00:00:11]} 20. bxc5
{[%clk 00:06:25]} {[%emt 00:00:09]} bxc5 {[%clk 00:05:42]} {[%emt 00:00:05]} 21.
Qb3 {[%clk 00:06:18]} {[%emt 00:00:09]} Rc7 {[%clk 00:05:17]} {[%emt 00:00:28]}
22. Bc2 {[%clk 00:06:13]} {[%emt 00:00:09]} Ba8 {[%clk 00:04:57]} {[%emt
00:00:23]} 23. Qa3 {[%clk 00:06:07]} {[%emt 00:00:09]} Ra7 {[%clk 00:04:52]}
{[%emt 00:00:08]} 24. Ba5 {[%clk 00:06:07]} {[%emt 00:00:04]} Bb7 {[%clk
00:04:48]} {[%emt 00:00:06]} 25. Rb2 {[%clk 00:06:04]} {[%emt 00:00:06]} Nh7
{[%clk 00:04:45]} {[%emt 00:00:06]} 26. Nf3 {[%clk 00:06:05]} {[%emt 00:00:02]}
Nef6 {[%clk 00:04:30]} {[%emt 00:00:18]} 27. Reb1 {[%clk 00:06:07]} {[%emt
00:00:02]} Rc8 {[%clk 00:03:47]} {[%emt 00:00:46]} 28. Bb6 {[%clk 00:06:01]}
{[%emt 00:00:10]} Raa8 {[%clk 00:03:48]} 29. Bxc5 {[%clk 00:05:58]} {[%emt
00:00:06]} Rxc5 {[%clk 00:03:32]} {[%emt 00:00:20]} 30. Rxb7 {[%clk 00:05:58]}
{[%emt 00:00:03]} Qd8 {[%clk 00:03:26]} {[%emt 00:00:08]} 31. Bd3 {[%clk
00:05:18]} {[%emt 00:00:43]} Nd7 {[%clk 00:02:58]} {[%emt 00:00:31]} 32. Qa4
{[%clk 00:05:04]} {[%emt 00:00:17]} Nhf8 {[%clk 00:02:56]} {[%emt 00:00:04]} 33.
Ne2 {[%clk 00:04:44]} {[%emt 00:00:23]} Ra5 {[%clk 00:02:49]} {[%emt 00:00:10]}
34. Qc2 {[%clk 00:04:29]} {[%emt 00:00:18]} Nc5 {[%clk 00:02:47]} {[%emt
00:00:05]} 35. R7b2 {[%clk 00:04:30]} {[%emt 00:00:03]} Nfd7 {[%clk 00:02:34]}
{[%emt 00:00:15]} 36. Nc1 {[%clk 00:04:16]} {[%emt 00:00:17]} Na4 {[%clk
00:01:06]} {[%emt 00:01:32]} 37. Rb4 {[%clk 00:04:03]} {[%emt 00:00:16]} Nac5
{[%clk 00:01:02]} {[%emt 00:00:06]} 38. g3 {[%clk 00:02:40]} {[%emt 00:01:26]}
Rc8 {[%clk 00:01:00]} {[%emt 00:00:05]} 39. Kg2 {[%clk 00:02:41]} {[%emt
00:00:02]} Bh6 {[%clk 00:00:51]} {[%emt 00:00:11]} 40. Nb3 {[%clk 00:02:09]}
{[%emt 00:00:35]} Nxd3 {[%clk 00:00:37]} {[%emt 00:00:17]} 41. Qxd3 {[%clk
00:02:06]} {[%emt 00:00:07]} Rxa2 {[%clk 00:00:31]} {[%emt 00:00:09]} 42. Rb7
{[%clk 00:01:46]} {[%emt 00:00:23]} Nc5 {[%clk 00:00:13]} {[%emt 00:00:21]} 43.
Nxc5 {[%clk 00:01:47]} {[%emt 00:00:02]} Rxc5 {[%clk 00:00:15]} {[%emt
00:00:01]} 44. Qb3 {[%clk 00:01:36]} {[%emt 00:00:15]} Raa5 {[%clk 00:00:14]}
{[%emt 00:00:03]} 45. Qb4 {[%clk 00:01:29]} {[%emt 00:00:10]} Rc8 {[%clk
00:00:08]} {[%emt 00:00:10]} 46. Rb2 {[%clk 00:01:26]} {[%emt 00:00:06]} Rac5
{[%clk 00:00:06]} {[%emt 00:00:04]} 47. Rc2 {[%clk 00:01:20]} {[%emt 00:00:10]}
Bf8 {[%clk 00:00:07]} {[%emt 00:00:02]} 48. Ng5 {[%clk 00:01:12]} {[%emt
00:00:11]} Be7 {[%clk 00:00:06]} {[%emt 00:00:03]} 49. Nf3 {[%clk 00:01:14]}
Bf8 {[%clk 00:00:08]} {[%emt 00:00:01]} 50. Qa4 {[%clk 00:01:17]} a5 {[%clk
00:00:10]} 51. Nd2 {[%clk 00:01:05]} {[%emt 00:00:15]} R5c7 {[%clk 00:00:10]}
{[%emt 00:00:03]} 52. Rb5 {[%clk 00:01:05]} {[%emt 00:00:04]} Ra7 {[%clk
00:00:10]} {[%emt 00:00:03]} 53. Nb3 {[%clk 00:01:07]} Rca8 {[%clk 00:00:09]}
{[%emt 00:00:05]} 54. Ra2 {[%clk 00:01:04]} {[%emt 00:00:05]} Qc7 {[%clk
00:00:08]} {[%emt 00:00:03]} 55. Rb2 {[%clk 00:00:35]} {[%emt 00:00:33]} Be7
{[%clk 00:00:08]} {[%emt 00:00:03]} 56. Nc1 {[%clk 00:00:37]} {[%emt 00:00:01]}
Bd8 {[%clk 00:00:09]} {[%emt 00:00:02]} 57. Nd3 {[%clk 00:00:39]} Qe7 {[%clk
00:00:09]} {[%emt 00:00:03]} 58. c5 {[%clk 00:00:38]} {[%emt 00:00:04]} dxc5
{[%clk 00:00:11]} {[%emt 00:00:02]} 59. Rxc5 {[%clk 00:00:36]} {[%emt
00:00:05]} Bc7 {[%clk 00:00:12]} {[%emt 00:00:02]} 60. Rc6 {[%clk 00:00:37]}
{[%emt 00:00:02]} Bd6 {[%clk 00:00:12]} {[%emt 00:00:02]} 61. Rbb6 {[%clk
00:00:36]} {[%emt 00:00:04]} Ba3 {[%clk 00:00:11]} {[%emt 00:00:03]} 62. d6
{[%clk 00:00:37]} {[%emt 00:00:02]} Bxd6 {[%clk 00:00:12]} {[%emt 00:00:03]} 63.
Rxd6 {[%clk 00:00:39]} Rc7 {[%clk 00:00:10]} {[%emt 00:00:05]} 64. Rd5 {[%clk
00:00:35]} {[%emt 00:00:07]} Qf8 {[%clk 00:00:07]} {[%emt 00:00:06]} 65. Nxe5
{[%clk 00:00:30]} {[%emt 00:00:08]} Qc8 {[%clk 00:00:07]} {[%emt 00:00:03]} 66.
Rxa5 {[%clk 00:00:23]} {[%emt 00:00:10]} Rxa5 {[%clk 00:00:07]} {[%emt
00:00:03]} 67. Qxa5 {[%clk 00:00:25]} {[%emt 00:00:01]} Rc5 {[%clk 00:00:07]}
{[%emt 00:00:03]} 68. Rb5 {[%clk 00:00:27]} {[%emt 00:00:01]} Rc2 {[%clk
00:00:07]} {[%emt 00:00:03]} 69. Rd5 {[%clk 00:00:22]} {[%emt 00:00:08]} Kg7
{[%clk 00:00:08]} {[%emt 00:00:02]} 70. Qa7 {[%clk 00:00:20]} {[%emt 00:00:05]}
Qf8 {[%clk 00:00:06]} {[%emt 00:00:05]} 71. Rd8 {[%clk 00:00:16]} {[%emt
00:00:08]} 1-0

[Event "Cerrado Blitz Quart 2018"]
[Site "Quart (Valencia), Spain"]
[Date "2018.08.30"]
[Round "3.4"]
[White "Chernikov, Vladimir"]
[Black "Lara Lopez, Sergio"]
[Result "0-1"]
[TimeControl "7 minutos +3s por jugada"]
[WhiteFideId "14112914"]
[BlackFideId "2268400"]
[WhiteElo "2035"]
[BlackElo "2165"]

1. b3 {[%clk 00:07:05]} {[%emt 00:00:01]} e5 {[%clk 00:07:04]} {[%emt
00:00:03]} 2. Bb2 {[%clk 00:07:06]} d6 {[%clk 00:07:06]} {[%emt 00:00:01]} 3.
e3 {[%clk 00:07:06]} {[%emt 00:00:03]} Nc6 {[%clk 00:07:06]} {[%emt 00:00:03]}
4. Bb5 {[%clk 00:07:03]} {[%emt 00:00:05]} Bd7 {[%clk 00:07:05]} {[%emt
00:00:05]} 5. Nf3 {[%clk 00:07:04]} {[%emt 00:00:02]} f5 {[%clk 00:07:05]}
{[%emt 00:00:03]} 6. d4 {[%clk 00:07:02]} {[%emt 00:00:04]} e4 {[%clk
00:07:07]} {[%emt 00:00:02]} 7. Nfd2 {[%clk 00:06:43]} {[%emt 00:00:21]} Nf6
{[%clk 00:07:05]} {[%emt 00:00:05]} 8. c4 {[%clk 00:06:39]} {[%emt 00:00:07]}
Nb4 {[%clk 00:07:00]} {[%emt 00:00:08]} 9. Bxd7+ {[%clk 00:06:32]} {[%emt
00:00:10]} Qxd7 {[%clk 00:07:02]} {[%emt 00:00:01]} 10. O-O {[%clk 00:06:27]}
{[%emt 00:00:07]} Nd3 {[%clk 00:06:56]} {[%emt 00:00:10]} 11. Qc2 {[%clk
00:06:09]} {[%emt 00:00:21]} g6 {[%clk 00:06:29]} {[%emt 00:00:30]} 12. Nc3
{[%clk 00:05:54]} {[%emt 00:00:18]} Bh6 {[%clk 00:06:16]} {[%emt 00:00:16]} 13.
Ba3 {[%clk 00:05:19]} {[%emt 00:00:38]} c6 {[%clk 00:05:38]} {[%emt 00:00:41]}
14. Nd1 {[%clk 00:05:18]} {[%emt 00:00:04]} a5 {[%clk 00:05:26]} {[%emt
00:00:15]} 15. Nb2 {[%clk 00:05:15]} {[%emt 00:00:06]} Nb4 {[%clk 00:05:25]}
{[%emt 00:00:05]} 16. Qc3 {[%clk 00:04:41]} {[%emt 00:00:37]} O-O {[%clk
00:04:54]} {[%emt 00:00:34]} 17. Bxb4 {[%clk 00:04:22]} {[%emt 00:00:21]} axb4
{[%clk 00:04:56]} {[%emt 00:00:01]} 18. Qxb4 {[%clk 00:04:23]} {[%emt
00:00:02]} f4 {[%clk 00:04:54]} {[%emt 00:00:06]} 19. exf4 {[%clk 00:02:50]}
{[%emt 00:01:36]} Bxf4 {[%clk 00:04:53]} {[%emt 00:00:04]} 20. Qc3 {[%clk
00:02:51]} {[%emt 00:00:01]} d5 {[%clk 00:04:36]} {[%emt 00:00:21]} 21. Na4
{[%clk 00:02:40]} {[%emt 00:00:14]} Rae8 {[%clk 00:04:30]} {[%emt 00:00:08]} 22.
cxd5 {[%clk 00:01:47]} {[%emt 00:00:55]} cxd5 {[%clk 00:04:31]} {[%emt
00:00:02]} 23. Nc5 {[%clk 00:01:29]} {[%emt 00:00:21]} Qg4 {[%clk 00:04:32]}
{[%emt 00:00:02]} 24. g3 {[%clk 00:00:33]} {[%emt 00:00:59]} Qh3 {[%clk
00:04:12]} {[%emt 00:00:23]} 25. f3 {[%clk 00:00:09]} {[%emt 00:00:27]} Bxg3
{[%clk 00:04:00]} {[%emt 00:00:15]} 26. hxg3 {[%clk 00:00:10]} {[%emt
00:00:01]} Qxg3+ {[%clk 00:04:03]} 27. Kh1 {[%clk 00:00:13]} e3 {[%clk
00:03:57]} {[%emt 00:00:10]} 28. Nde4 {[%clk 00:00:08]} {[%emt 00:00:07]} dxe4
{[%clk 00:03:46]} {[%emt 00:00:14]} 29. Nxe4 {[%clk 00:00:09]} {[%emt
00:00:02]} Nxe4 {[%clk 00:02:44]} {[%emt 00:01:05]} 30. fxe4 {[%clk 00:00:11]}
{[%emt 00:00:02]} Qh4+ {[%clk 00:02:16]} {[%emt 00:00:31]} 31. Kg1 {[%clk
00:00:10]} {[%emt 00:00:04]} Qxe4 {[%clk 00:02:05]} {[%emt 00:00:14]} 32. Rae1
{[%clk 00:00:08]} {[%emt 00:00:04]} Rf3 {[%clk 00:01:44]} {[%emt 00:00:25]} 33.
Rxf3 {[%clk 00:00:04]} {[%emt 00:00:07]} Qxf3 {[%clk 00:01:46]} {[%emt
00:00:01]} 34. d5 {[%clk 00:00:04]} {[%emt 00:00:03]} Qf2+ {[%clk 00:01:44]}
{[%emt 00:00:04]} 35. Kh1 {[%clk 00:00:06]} {[%emt 00:00:01]} e2 {[%clk
00:01:41]} {[%emt 00:00:06]} 36. d6 {[%clk 00:00:04]} {[%emt 00:00:05]} Re3
{[%clk 00:00:50]} {[%emt 00:00:54]} 37. Qc8+ {[%clk 00:00:04]} {[%emt
00:00:03]} Kg7 {[%clk 00:00:49]} {[%emt 00:00:04]} 38. Qxb7+ {[%emt 00:00:03]}
Kh6 {[%emt 00:00:06]} 0-1

[Event "Cerrado Blitz Quart 2018"]
[Site "Quart (Valencia), Spain"]
[Date "2018.08.30"]
[Round "3.5"]
[White "Ordoñez Carrasco, Jorge"]
[Black "Kovacevic, Slobodan"]
[Result "0-1"]
[TimeControl "7 minutos +3s por jugada"]
[BlackTitle "IM"]
[WhiteFideId "24529826"]
[BlackFideId "902152"]
[WhiteElo "1531"]
[BlackElo "2418"]

1. e4 {[%clk 00:07:04]} {[%emt 00:00:02]} c5 {[%clk 00:07:05]} {[%emt
00:00:01]} 2. Nf3 {[%clk 00:07:04]} {[%emt 00:00:02]} e6 {[%clk 00:07:08]}
{[%emt 00:00:02]} 3. d4 {[%clk 00:07:00]} {[%emt 00:00:06]} cxd4 {[%clk
00:07:09]} {[%emt 00:00:02]} 4. Nxd4 {[%clk 00:07:02]} a6 {[%clk 00:07:11]}
{[%emt 00:00:02]} 5. Nc3 {[%clk 00:06:19]} {[%emt 00:00:45]} Qc7 {[%clk
00:07:13]} {[%emt 00:00:02]} 6. Bd3 {[%clk 00:06:01]} {[%emt 00:00:20]} Nf6
{[%clk 00:07:14]} {[%emt 00:00:03]} 7. O-O {[%clk 00:05:28]} {[%emt 00:00:35]}
d6 {[%clk 00:07:16]} {[%emt 00:00:02]} 8. f3 {[%clk 00:05:21]} {[%emt
00:00:10]} Nbd7 {[%clk 00:07:13]} {[%emt 00:00:05]} 9. Be3 {[%clk 00:05:08]}
{[%emt 00:00:16]} b5 {[%clk 00:07:12]} {[%emt 00:00:05]} 10. a3 {[%clk
00:05:01]} {[%emt 00:00:10]} Bb7 {[%clk 00:07:13]} {[%emt 00:00:02]} 11. Nb3
{[%clk 00:04:22]} {[%emt 00:00:42]} Be7 {[%clk 00:07:14]} {[%emt 00:00:02]} 12.
Qd2 {[%clk 00:04:14]} {[%emt 00:00:11]} O-O {[%clk 00:07:11]} {[%emt 00:00:06]}
13. Rad1 {[%clk 00:03:51]} {[%emt 00:00:25]} Ne5 {[%clk 00:07:12]} {[%emt
00:00:02]} 14. Be2 {[%clk 00:03:38]} {[%emt 00:00:15]} Rab8 {[%clk 00:06:50]}
{[%emt 00:00:26]} 15. Kh1 {[%clk 00:02:56]} {[%emt 00:00:44]} Rfc8 {[%clk
00:06:48]} {[%emt 00:00:06]} 16. Rc1 {[%clk 00:02:40]} {[%emt 00:00:18]} Ba8
{[%clk 00:06:34]} {[%emt 00:00:18]} 17. Bg1 {[%clk 00:01:32]} {[%emt 00:01:11]}
Nc4 {[%clk 00:06:33]} {[%emt 00:00:04]} 18. Bxc4 {[%clk 00:01:32]} {[%emt
00:00:03]} bxc4 {[%clk 00:06:35]} {[%emt 00:00:02]} 19. Nd4 {[%clk 00:01:26]}
{[%emt 00:00:09]} Rxb2 {[%clk 00:06:34]} {[%emt 00:00:05]} 20. Rb1 {[%clk
00:01:18]} {[%emt 00:00:10]} Rxb1 {[%clk 00:06:23]} {[%emt 00:00:14]} 21. Rxb1
{[%clk 00:01:20]} Rb8 {[%clk 00:06:24]} {[%emt 00:00:03]} 22. Rxb8+ {[%clk
00:01:07]} {[%emt 00:00:15]} Qxb8 {[%clk 00:06:26]} {[%emt 00:00:01]} 23. Qe2
{[%clk 00:00:44]} {[%emt 00:00:25]} Qc7 {[%clk 00:06:21]} {[%emt 00:00:08]} 24.
Nd1 {[%clk 00:00:18]} {[%emt 00:00:30]} d5 {[%clk 00:06:20]} {[%emt 00:00:05]}
25. exd5 {[%clk 00:00:20]} Nxd5 {[%clk 00:06:05]} {[%emt 00:00:18]} 26. Nb2
{[%clk 00:00:08]} {[%emt 00:00:14]} c3 {[%clk 00:05:49]} {[%emt 00:00:19]} 27.
Nd3 {[%clk 00:00:06]} {[%emt 00:00:05]} Bf8 {[%clk 00:05:14]} {[%emt 00:00:39]}
28. a4 {[%clk 00:00:04]} {[%emt 00:00:05]} Qc8 {[%clk 00:05:05]} {[%emt
00:00:12]} 29. Qe5 {[%clk 00:00:04]} {[%emt 00:00:03]} h6 {[%clk 00:04:45]}
{[%emt 00:00:23]} 30. Nb3 {[%clk 00:00:07]} Qc7 {[%clk 00:04:39]} {[%emt
00:00:09]} 31. Qd4 {[%clk 00:00:07]} {[%emt 00:00:03]} Be7 {[%clk 00:04:37]}
{[%emt 00:00:05]} 0-1

[Event "Cerrado Blitz Quart 2018"]
[Site "Quart (Valencia), Spain"]
[Date "2018.08.30"]
[Round "4.1"]
[White "Pena Riasco, Alexander"]
[Black "Kovacevic, Slobodan"]
[Result "0-1"]
[TimeControl "7 minutos +3s por jugada"]
[WhiteTitle "FM"]
[BlackTitle "IM"]
[WhiteFideId "4403339"]
[BlackFideId "902152"]
[WhiteElo "2119"]
[BlackElo "2418"]

1. d4 {[%clk 00:07:03]} {[%emt 00:05:04]} Nf6 {[%clk 00:07:04]} {[%emt
00:00:35]} 2. Nf3 {[%clk 00:07:06]} e6 {[%clk 00:07:06]} 3. Bf4 {[%clk
00:07:08]} c5 {[%clk 00:07:08]} 4. e3 {[%clk 00:07:09]} b6 {[%clk 00:07:05]} 5.
Nbd2 {[%clk 00:07:08]} Be7 {[%clk 00:07:06]} {[%emt 00:00:03]} 6. h3 {[%clk
00:07:09]} Bb7 {[%clk 00:07:08]} 7. Bd3 {[%clk 00:07:06]} cxd4 {[%clk
00:07:09]} {[%emt 00:00:03]} 8. exd4 {[%clk 00:07:08]} O-O {[%clk 00:07:10]} 9.
O-O {[%clk 00:07:05]} {[%emt 00:00:07]} a6 {[%clk 00:07:09]} {[%emt 00:00:07]}
10. c3 {[%clk 00:07:06]} {[%emt 00:00:07]} d6 {[%clk 00:07:10]} 11. Re1 {[%clk
00:07:06]} {[%emt 00:00:03]} Nbd7 {[%clk 00:07:11]} 12. a4 {[%clk 00:06:50]}
{[%emt 00:00:15]} Re8 {[%clk 00:07:12]} {[%emt 00:00:03]} 13. Qc2 {[%clk
00:06:22]} {[%emt 00:00:29]} h6 {[%clk 00:07:00]} {[%emt 00:00:16]} 14. Ne4
{[%clk 00:06:07]} {[%emt 00:00:16]} Qc7 {[%clk 00:07:01]} {[%emt 00:00:14]} 15.
Qd2 {[%clk 00:04:59]} {[%emt 00:01:03]} Bf8 {[%clk 00:06:57]} {[%emt 00:00:03]}
16. Re2 {[%clk 00:04:04]} {[%emt 00:00:55]} Bc6 {[%clk 00:06:51]} {[%emt
00:00:14]} 17. b3 {[%clk 00:03:34]} {[%emt 00:00:30]} b5 {[%clk 00:06:07]}
{[%emt 00:00:57]} 18. axb5 {[%clk 00:03:34]} {[%emt 00:00:08]} axb5 {[%clk
00:06:09]} 19. Rxa8 {[%clk 00:02:42]} {[%emt 00:00:40]} Rxa8 {[%clk 00:06:11]}
{[%emt 00:00:21]} 20. c4 {[%clk 00:02:29]} {[%emt 00:00:08]} bxc4 {[%clk
00:06:08]} 21. bxc4 {[%clk 00:02:31]} Bxe4 {[%clk 00:06:04]} {[%emt 00:00:10]}
22. Bxe4 {[%clk 00:02:30]} {[%emt 00:00:03]} Nxe4 {[%clk 00:06:06]} 23. Rxe4
{[%clk 00:02:32]} Qxc4 {[%clk 00:05:57]} {[%emt 00:00:08]} 24. Re1 {[%clk
00:02:14]} {[%emt 00:00:34]} Ra2 {[%clk 00:05:53]} {[%emt 00:00:17]} 25. Qe3
{[%clk 00:02:10]} Nf6 {[%clk 00:05:48]} {[%emt 00:00:03]} 26. Rc1 {[%clk
00:02:08]} Qa6 {[%clk 00:05:43]} {[%emt 00:00:04]} 27. Qb3 {[%clk 00:02:04]}
{[%emt 00:00:05]} Nd5 {[%clk 00:05:37]} {[%emt 00:00:28]} 28. Bg3 {[%clk
00:02:05]} Ra1 {[%clk 00:05:12]} {[%emt 00:00:14]} 29. Rxa1 {[%clk 00:02:01]}
{[%emt 00:00:04]} Qxa1+ {[%clk 00:05:13]} {[%emt 00:00:35]} 30. Kh2 {[%clk
00:02:03]} Qa8 {[%clk 00:05:12]} 31. Qb5 {[%clk 00:02:00]} {[%emt 00:00:04]}
Qd8 {[%clk 00:05:10]} 32. Qc6 {[%clk 00:01:56]} Be7 {[%clk 00:05:01]} {[%emt
00:00:04]} 33. Nd2 {[%clk 00:01:56]} Nb4 {[%clk 00:04:53]} {[%emt 00:00:18]} 34.
Qb7 {[%clk 00:01:55]} d5 {[%clk 00:04:52]} 35. Nf3 {[%clk 00:01:57]} {[%emt
00:00:04]} Bf8 {[%clk 00:04:41]} {[%emt 00:00:17]} 36. Ne5 {[%clk 00:01:45]}
{[%emt 00:00:07]} Qe7 {[%clk 00:04:43]} {[%emt 00:00:05]} 37. Qc8 {[%clk
00:01:45]} Kh7 {[%clk 00:04:41]} {[%emt 00:00:07]} 38. Nd7 {[%clk 00:01:44]}
{[%emt 00:00:04]} Kg8 {[%clk 00:04:38]} {[%emt 00:00:07]} 39. Bf4 {[%clk
00:01:11]} {[%emt 00:00:31]} Nd3 {[%emt 00:00:19]} 40. Bg3 {[%clk 00:01:08]}
{[%emt 00:00:11]} f5 {[%clk 00:04:23]} 41. Nxf8 {[%clk 00:01:07]} {[%emt
00:00:09]} Qxf8 {[%clk 00:04:25]} 42. Qxe6+ {[%clk 00:01:08]} Qf7 {[%clk
00:04:27]} {[%emt 00:00:04]} 43. Qe3 {[%clk 00:00:42]} {[%emt 00:00:22]} Nb4
{[%clk 00:04:24]} {[%emt 00:00:17]} 44. Be5 {[%clk 00:00:39]} Nc6 {[%clk
00:04:24]} {[%emt 00:00:22]} 45. f4 {[%clk 00:00:41]} Ne7 {[%clk 00:04:16]}
{[%emt 00:00:03]} 46. Qb3 {[%clk 00:00:23]} {[%emt 00:00:06]} Ng6 {[%clk
00:04:11]} {[%emt 00:00:26]} 47. Qb6 {[%clk 00:00:15]} {[%emt 00:00:07]} Kh7
{[%clk 00:04:12]} 48. Qd6 {[%clk 00:00:16]} Nh4 {[%clk 00:03:59]} {[%emt
00:00:08]} 49. g3 {[%clk 00:00:10]} {[%emt 00:00:10]} Ng6 {[%clk 00:04:01]} 50.
h4 {[%clk 00:00:11]} {[%emt 00:00:04]} Nf8 {[%clk 00:03:58]} {[%emt 00:00:04]}
51. Kh3 {[%clk 00:00:11]} {[%emt 00:00:10]} Ne6 {[%clk 00:03:53]} 52. Kh2
{[%clk 00:00:10]} {[%emt 00:00:05]} Nf8 {[%clk 00:03:51]} {[%emt 00:00:08]} 53.
Kh3 {[%clk 00:00:07]} {[%emt 00:00:03]} Kg8 {[%clk 00:03:46]} {[%emt 00:00:08]}
54. Kg2 {[%clk 00:00:08]} {[%emt 00:00:04]} Kh7 {[%clk 00:03:46]} {[%emt
00:00:04]} 55. Kh3 {[%clk 00:00:08]} {[%emt 00:00:04]} Ng6 {[%clk 00:03:37]}
{[%emt 00:00:09]} 56. Kg2 {[%clk 00:00:07]} {[%emt 00:00:10]} Nh8 {[%clk
00:03:37]} 57. Kh3 {[%clk 00:00:09]} Ng6 {[%clk 00:03:35]} {[%emt 00:00:13]} 58.
Kg2 {[%clk 00:00:09]} Nf8 {[%clk 00:02:47]} {[%emt 00:00:54]} 59. Kh3 {[%clk
00:00:10]} Kg8 {[%clk 00:02:40]} {[%emt 00:00:04]} 60. Qb8 {[%clk 00:00:04]}
{[%emt 00:00:05]} Kh7 {[%clk 00:02:31]} {[%emt 00:00:12]} 61. Qd6 {[%clk
00:00:04]} {[%emt 00:00:23]} Nd7 {[%clk 00:02:32]} {[%emt 00:00:03]} 62. Qc7
{[%clk 00:00:06]} Qe6 {[%clk 00:02:28]} 63. Qd6 {[%clk 00:00:07]} Qxd6 64. Bxd6
{[%clk 00:00:10]} h5 {[%emt 00:00:03]} 65. Kg2 Kg8 {[%clk 00:02:26]} 66. Kf3
{[%clk 00:00:11]} Kf7 {[%clk 00:02:29]} 67. Ke3 {[%clk 00:00:13]} Nb6 {[%clk
00:02:29]} {[%emt 00:00:03]} 68. Kd3 {[%clk 00:00:13]} Nc4 {[%clk 00:02:29]}
{[%emt 00:00:04]} 69. Be5 {[%clk 00:00:16]} g6 {[%clk 00:02:32]} 70. Kc3 {[%clk
00:00:17]} {[%emt 00:00:03]} Ke6 {[%clk 00:02:34]} 71. Kb4 {[%clk 00:00:19]}
{[%emt 00:00:05]} Nd2 {[%clk 00:02:34]} 72. Kc5 {[%clk 00:00:19]} {[%emt
00:00:08]} Ne4+ {[%clk 00:02:35]} 73. Kc6 {[%clk 00:00:21]} {[%emt 00:00:07]}
Nxg3 {[%clk 00:02:37]} 74. Kc7 {[%clk 00:00:24]} Ne2 {[%clk 00:02:36]} 75. Kd8
{[%clk 00:00:26]} Ng1 {[%clk 00:02:34]} 76. Ke8 {[%clk 00:00:28]} {[%emt
00:00:03]} Nf3 {[%clk 00:02:36]} 77. Kf8 {[%clk 00:00:29]} Nxh4 {[%clk
00:02:36]} {[%emt 00:00:04]} 78. Kg7 {[%clk 00:00:32]} Nf3 {[%clk 00:02:38]}
{[%emt 00:00:04]} 79. Kxg6 {[%clk 00:00:34]} h4 {[%clk 00:02:40]} 0-1